fUST/lending_fUST_20260212
["ID","MTS","AMOUNT","RATE_DAILY","PERIOD"]
[405115369,1770850249944,-151.0,0.00038356,120]
[405115370,1770850249955,-151.0,0.00038356,120]
[405115371,1770850249965,-151.0,0.00038356,120]
[405115372,1770850249975,-151.0,0.00038356,120]
[405115373,1770850249985,-151.0,0.00038356,120]
[405115374,1770850249995,-151.0,0.00038356,120]
[405115375,1770850250006,-151.0,0.00038356,120]
[405115376,1770850250016,-151.0,0.00038356,120]
[405115377,1770850250026,-151.0,0.00038356,120]
[405115378,1770850250036,-151.0,0.00038356,120]
[405115379,1770850250046,-151.0,0.00038356,120]
[405115380,1770850250055,-151.0,0.00038356,120]
[405115381,1770850250065,-238.307627,0.00038356,120]
[405115382,1770850250074,-151.0,0.00038356,120]
[405115383,1770850250083,-151.0,0.00038356,120]
[405115384,1770850250093,-151.0,0.00038356,120]
[405115385,1770850250103,-151.0,0.00038356,120]
[405115386,1770850250112,-151.0,0.00038356,120]
[405115387,1770850250122,-151.0,0.00038356,120]
[405115388,1770850250132,-151.0,0.00038356,120]
[405115389,1770850250142,-151.0,0.00038356,120]
[405115390,1770850250151,-176.737647,0.00038356,120]
[405115391,1770850250161,-151.0,0.00038356,120]
[405115392,1770850250170,-151.0,0.00038356,120]
[405115393,1770850250180,-151.0,0.00038356,120]
[405115394,1770850250190,-151.0,0.00038356,120]
[405115395,1770850250199,-151.0,0.00038356,120]
[405115396,1770850250209,-151.0,0.00038356,120]
[405115397,1770850250219,-151.0,0.00038356,120]
[405115398,1770850250229,-151.0,0.00038356,120]
[405115399,1770850250239,-151.0,0.00038356,120]
[405115400,1770850250249,-151.0,0.00038356,120]
[405115401,1770850250259,-151.0,0.00038356,120]
[405115402,1770850250268,-151.0,0.00038356,120]
[405115403,1770850250278,-151.0,0.00038356,120]
[405115404,1770850250287,-151.0,0.00038356,120]
[405115405,1770850250297,-151.0,0.00038356,120]
[405115406,1770850250306,-151.0,0.00038356,120]
[405115407,1770850250316,-200.254017,0.00038356,120]
[405115408,1770850250326,-151.0,0.00038356,120]
[405115409,1770850250336,-151.0,0.00038356,120]
[405115410,1770850250346,-151.0,0.00038356,120]
[405115411,1770850250356,-342.175505,0.00038356,120]
[405115412,1770850250366,-151.0,0.00038356,120]
[405115413,1770850250377,-342.175505,0.00038356,120]
[405115414,1770850250387,-151.0,0.00038356,120]
[405115415,1770850250397,-342.175505,0.00038356,120]
[405115416,1770850250409,-151.0,0.00038356,120]
[405115417,1770850250419,-151.0,0.00038356,120]
[405115418,1770850250428,-342.175505,0.00038356,120]
[405115419,1770850250438,-151.0,0.00038356,120]
[405115420,1770850250447,-151.0,0.00038356,120]
[405115421,1770850250457,-342.175505,0.00038356,120]
[405115422,1770850250539,-151.0,0.00038356,120]
[405115423,1770850250551,-342.175505,0.00038356,120]
[405115424,1770850250561,-151.0,0.00038356,120]
[405115425,1770850250571,-151.0,0.00038356,120]
[405115426,1770850250582,-342.175505,0.00038356,120]
[405115427,1770850250591,-151.0,0.00038356,120]
[405115428,1770850250601,-151.0,0.00038356,120]
[405115429,1770850250611,-342.175505,0.00038356,120]
[405115430,1770850250622,-151.0,0.00038356,120]
[405115431,1770850250632,-151.0,0.00038356,120]
[405115432,1770850250642,-342.175505,0.00038356,120]
[405115433,1770850250651,-158.222729,0.00038356,120]
[405115434,1770850250660,-151.0,0.00038356,120]
[405115435,1770850250670,-342.175505,0.00038356,120]
[405115436,1770850250679,-151.0,0.00038356,120]
[405115437,1770850250688,-342.175505,0.00038356,120]
[405115438,1770850250697,-151.0,0.00038356,120]
[405115439,1770850250706,-342.175505,0.00038356,120]
[405115440,1770850250716,-151.0,0.00038356,120]
[405115441,1770850250725,-342.175505,0.00038356,120]
[405115442,1770850250734,-151.0,0.00038356,120]
[405115443,1770850250744,-342.175505,0.00038356,120]
[405115444,1770850250753,-151.0,0.00038356,120]
[405115445,1770850250763,-342.175505,0.00038356,120]
[405115446,1770850250772,-206.208691,0.00038356,120]
[405115447,1770850250782,-342.175505,0.00038356,120]
[405115448,1770850250791,-342.175505,0.00038356,120]
[405115449,1770850250801,-342.175505,0.00038356,120]
[405115450,1770850250811,-342.175505,0.00038356,120]
[405115451,1770850250821,-342.175498,0.00038356,120]
[405115452,1770850250831,-151.0,0.00038356,120]
[405115453,1770850250841,-151.0,0.00038356,120]
[405115454,1770850250850,-151.0,0.00038356,120]
[405115455,1770850250860,-151.0,0.00038356,120]
[405115456,1770850250870,-151.0,0.00038356,120]
[405115457,1770850250880,-169.647342,0.00038356,120]
[405115458,1770850250889,-233.929867,0.00038356,120]
[405115459,1770850250899,-209.666546,0.00038356,2]
[405115460,1770850250910,-151.0,0.00038356,120]
[405115461,1770850250920,-151.0,0.00038356,120]
[405115462,1770850250930,-151.0,0.00038356,120]
[405115463,1770850250940,-151.0,0.00038356,120]
[405115464,1770850250950,-151.0,0.00038356,120]
[405115465,1770850250960,-151.0,0.00038356,120]
[405115466,1770850250969,-151.0,0.00038356,120]
[405115467,1770850250979,-151.0,0.00038356,120]
[405115468,1770850250988,-151.0,0.00038356,120]
[405115469,1770850250999,-151.0,0.00038356,120]
[405115470,1770850251010,-175.845853,0.00038356,120]
[405115471,1770850251019,-151.0,0.00038356,7]
[405115472,1770850251029,-151.0,0.00038356,7]
[405115473,1770850251038,-151.0,0.00038356,120]
[405115474,1770850251047,-151.0,0.00038356,120]
[405115475,1770850251056,-151.0,0.00038356,120]
[405115476,1770850251065,-151.0,0.00038356,120]
[405115477,1770850251075,-151.0,0.00038356,120]
[405115478,1770850251084,-151.0,0.00038356,120]
[405115479,1770850251095,-293.719739,0.00038356,120]
[405115480,1770850251104,-293.719739,0.00038356,120]
[405115481,1770850251114,-293.719739,0.00038356,120]
[405115482,1770850251124,-293.719739,0.00038356,120]
[405115483,1770850251134,-293.719739,0.00038356,120]
[405115484,1770850251144,-293.719739,0.00038356,120]
[405115485,1770850251154,-293.719739,0.00038356,120]
[405115486,1770850251163,-293.719739,0.00038356,120]
[405115487,1770850251173,-293.719739,0.00038356,120]
[405115488,1770850251183,-293.719739,0.00038356,120]
[405115489,1770850251192,-832.321089,0.00038356,120]
[405115490,1770850251202,-832.321089,0.00038356,120]
[405115491,1770850251212,-293.719739,0.00038356,120]
[405115492,1770850251222,-832.321089,0.00038356,120]
[405115493,1770850251231,-293.719739,0.00038356,120]
[405115494,1770850251241,-832.321089,0.00038356,120]
[405115495,1770850251251,-293.719739,0.00038356,120]
[405115496,1770850251261,-293.719739,0.00038356,120]
[405115497,1770850251271,-832.321089,0.00038356,120]
[405115498,1770850251280,-293.719739,0.00038356,120]
[405115499,1770850251290,-832.321089,0.00038356,120]
[405115500,1770850251300,-293.719739,0.00038356,120]
[405115501,1770850251310,-151.0,0.00038356,120]
[405115502,1770850251320,-832.321089,0.00038356,120]
[405115503,1770850251330,-293.719739,0.00038356,120]
[405115504,1770850251340,-832.321089,0.00038356,120]
[405115505,1770850251350,-151.0,0.00038356,120]
[405115506,1770850251360,-293.719739,0.00038356,120]
[405115507,1770850251369,-832.321089,0.00038356,120]
[405115508,1770850251378,-151.0,0.00038356,120]
[405115509,1770850251387,-293.719739,0.00038356,120]
[405115510,1770850251396,-832.321089,0.00038356,120]
[405115511,1770850251405,-151.0,0.00038356,120]
[405115512,1770850251415,-293.719733,0.00038356,120]
[405115513,1770850251424,-832.321089,0.00038356,120]
[405115514,1770850251434,-151.0,0.00038356,120]
[405115515,1770850251443,-832.321089,0.00038356,120]
[405115516,1770850251453,-151.0,0.00038356,120]
[405115517,1770850251462,-832.321089,0.00038356,120]
[405115518,1770850251472,-151.0,0.00038356,120]
[405115519,1770850251554,-832.321089,0.00038356,120]
[405115520,1770850251564,-151.0,0.00038356,120]
[405115521,1770850251574,-832.321089,0.00038356,120]
[405115522,1770850251584,-151.0,0.00038356,120]
[405115523,1770850251594,-832.321089,0.00038356,120]
[405115524,1770850251603,-151.0,0.00038356,120]
[405115525,1770850251613,-440.12636796,0.00038356,120]
[405115526,1770850252075,-3214.46139086,0.00033751,2]
[405115527,1770850252095,-256.2,0.00033751,2]
[405115528,1770850283933,358.77578659,0.00013699,2]
[405115529,1770850320514,500.0,0.00013273,2]
[405115530,1770850320570,38.51283886,0.00013821,2]
[405115531,1770850320595,475.97650403,0.00013821,2]
[405115532,1770850330196,500.0,0.00013699,2]
[405115533,1770850330225,500.0,0.00014247,2]
[405115540,1770850507161,500.0,0.00013273,2]
[405115541,1770850507728,511.49094486,0.00013699,2]
[405115542,1770850510749,408.55432392,0.00013699,2]
[405115545,1770850582877,412.64967482,0.00013699,2]
[405115546,1770850583086,393.0,0.0003,120]
[405115547,1770850583186,511.85365811,0.00013699,2]
[405115553,1770850610781,500.0,0.00013699,2]
[405115555,1770850895009,500.0,0.00013699,2]
[405115556,1770850919733,-1796.95418392,0.00024953,2]
[405115558,1770851180348,488.50905514,0.00013699,2]
[405115559,1770851185937,500.0,0.00013699,2]
[405115561,1770851345179,-862.19375089,0.00024211,2]
[405115562,1770851345202,-150.0,0.00024334,2]
[405115563,1770851345224,-619.1911348,0.00024456,2]
[405115564,1770851345245,-306.461321,0.00024758,2]
[405115565,1770851345266,-293.0,0.00025204,2]
[405115566,1770851345286,-500.0,0.00025205,2]
[405115567,1770851345305,-500.0,0.00025205,2]
[405115568,1770851345327,-500.0,0.00025205,2]
[405115569,1770851345347,-500.0,0.00025205,2]
[405115570,1770851345367,-516.16,0.00030952,5]
[405115586,1770851432360,-78.13043524,0.00033751,2]
[405115587,1770851432370,-668.5636034,0.00033751,2]
[405115588,1770851432382,-331.4363966,0.00033751,2]
[405115589,1770851432399,-113.10849048,0.00035305,2]
[405116025,1770851440573,-224.02136852,0.00035305,2]
[405116026,1770851440583,-362.95831822,0.0003655,3]
[405116027,1770851440594,-624.92604797,0.00038282,2]
[405116028,1770851440604,-2000.0,0.00038299,30]
[405116029,1770851440614,-500.0,0.00038345,15]
[405116030,1770851440623,-500.0,0.00038345,7]
[405116031,1770851440634,-417.9860257,0.00038346,3]
[405116032,1770851440643,-2110.10823959,0.00038355,3]
[405116062,1770851446428,-722.0,0.00038346,10]
[405116063,1770851446481,-53.16266659,0.00038346,10]
[405116064,1770851446494,-504.18517485,0.00038346,10]
[405116071,1770851499481,388.78712474,0.00030137,120]
[405116074,1770851766579,500.0,0.00013273,2]
[405116075,1770851766640,676.72341867,0.00013821,2]
[405116078,1770852332110,-231.00000003,0.00024091,2]
[405116079,1770852430165,-231.00000003,0.0002385,2]
[405116080,1770852430191,-1608.83467073,0.00024091,2]
[405116081,1770852433076,-540.09750508,0.00024091,2]
[405116082,1770852433099,-150.0,0.00024457,2]
[405116083,1770852433120,-118.5612409,0.0002458,2]
[405116084,1770852548115,-691.4387591,0.0002458,2]
[405116085,1770852548140,-300.0,0.00024649,2]
[405116086,1770852548161,-37965.23569387,0.0002465,2]
[405116087,1770852548183,-376.05467282,0.00025,7]
[405116088,1770852548207,-177.0,0.00026457,2]
[405116089,1770852548230,-420.0,0.00026713,2]
[405116090,1770852548258,-295.0,0.00028949,2]
[405116091,1770852548281,-351.94833115,0.0003,2]
[405116092,1770852558365,-315.77416131,0.00032982,30]
[405116093,1770852558386,-150.0,0.00032982,30]
[405116094,1770852558407,-163.74665116,0.000333,2]
[405116126,1770852631509,-176.6839413,0.00034684,2]
[405116127,1770852631520,-143.5460587,0.00035616,120]
[405116129,1770852631532,-295.09052318,0.00035616,120]
[405116131,1770852631544,-61.36341812,0.00035616,120]
[405116133,1770852631554,-203.43147983,0.00037205,2]
[405116134,1770852631565,-194.16287061,0.00037889,3]
[405116135,1770852631577,-145.83712939,0.00037889,3]
[405116136,1770852631587,-400.0,0.00037889,3]
[405116137,1770852631598,-83.28287061,0.0003789,2]
[405116163,1770852637782,-803.92745742,0.0003789,2]
[405116467,1770852691361,834.28005328,0.00030137,120]
[405116468,1770852691384,1467.9803229,0.00030137,120]
[405116470,1770852757030,-915.3908198,0.00027394,2]
[405116471,1770852773766,-1587.44116379,0.00030137,120]
[405116472,1770852790465,-500.0,0.00031552,7]
[405116473,1770852790494,-915.3908198,0.00031934,2]
[405116474,1770852790523,-500.0,0.00032913,7]
[405116475,1770852796106,286.8942015,0.00027698,2]
[405116476,1770852807135,-278.08834419,0.00033638,2]
[405116477,1770852807163,-500.0,0.0003482,7]
[405116478,1770852823847,-250.0,0.00035287,2]
[405116479,1770852823876,-168.0,0.00036279,2]
[405116480,1770852823922,-915.3908198,0.00036473,2]
[405116481,1770852823956,-401.0,0.00036683,11]
[405116482,1770852823987,-712.0,0.00036743,11]
[405116483,1770852824018,-405.0,0.00036794,11]
[405116484,1770852824049,-5.90090626,0.00036969,2]
[405116485,1770852824062,-250.0,0.00036969,2]
[405116486,1770852824075,-144.09909374,0.00036969,2]
[405116487,1770852824084,-23.90090626,0.00036969,3]
[405116488,1770852824099,-376.09909374,0.00036969,3]
[405116489,1770852824109,-539.29172606,0.0003697,11]
[405116490,1770852824126,-208.70827394,0.0003697,11]
[405116491,1770853235045,239.75009,0.00027,120]
[405116492,1770853432417,-1287.94247422,0.00024953,2]
[405116493,1770853630128,-150.0,0.00025376,2]
[405116494,1770853630150,-305.52729689,0.00025547,2]
[405116495,1770853651099,-524.47270311,0.00025547,2]
[405116496,1770853651121,-431.75958033,0.00027138,2]
[405116497,1770853763113,-1071.35109467,0.00027138,2]
[405116498,1770853763140,-93.26331262,0.00027376,2]
[405116499,1770853766091,-83.73668738,0.00027376,2]
[405116500,1770853766118,-155.04353192,0.00027397,5]
[405116501,1770853766145,-53.71450005,0.00029376,2]
[405116502,1770853768139,-150.28549995,0.00029376,2]
[405116503,1770853768163,-188.23674767,0.00029425,34]
[405116504,1770853768189,-231.0,0.00031376,2]
[405116505,1770853768213,-1503.110675,0.00031629,2]
[405116506,1770853768258,-1600.0,0.00032272,3]
[405116507,1770853768286,-183.0314583,0.000332,117]
[405116508,1770853768313,-258.0,0.00033376,120]
[405116509,1770853768340,-225.37125575,0.00034083,2]
[405116510,1770853768365,-158.0,0.00034356,68]
[405116511,1770853768532,250.0,0.00033692,2]
[405116512,1770853775227,273.58608807,0.00024649,2]
[405116515,1770853831735,-168.0,0.00034693,2]
[405116516,1770853831746,-376.42071765,0.00034842,3]
[405116517,1770853831760,-23.57928235,0.00034842,3]
[405116518,1770853831771,-400.0,0.00034842,3]
[405116519,1770853831781,-742.38915205,0.000349,2]
[405116520,1770853831792,-500.0,0.00034971,7]
[405116521,1770853831802,-400.0,0.00035254,2]
[405116522,1770853831812,-320.0,0.00035254,3]
[405116523,1770853831822,-1046.0,0.00035254,3]
[405116524,1770853831833,-500.0,0.00035255,7]
[405116525,1770853831843,-165.33302664,0.00035255,7]
[405116526,1770853831853,-500.0,0.00035255,7]
[405116527,1770853831863,-500.0,0.00035255,7]
[405116528,1770853831873,-341.2027334,0.00035255,7]
[405116529,1770853831884,-287.64845073,0.00035255,7]
[405116530,1770853831894,-500.0,0.00035255,7]
[405116531,1770853831904,-500.0,0.00035255,7]
[405116532,1770853831914,-500.0,0.00035255,7]
[405116533,1770853831924,-500.0,0.00035255,7]
[405116534,1770853831934,-500.0,0.00035255,7]
[405116535,1770853831944,-500.0,0.00035255,7]
[405116536,1770853831954,-500.0,0.00035255,7]
[405116537,1770853831964,-500.0,0.00035255,7]
[405116538,1770853831974,-500.0,0.00035255,7]
[405116539,1770853831984,-500.0,0.00035255,7]
[405116540,1770853831993,-500.0,0.00035255,7]
[405116541,1770853832003,-500.0,0.00035255,7]
[405116542,1770853832013,-500.0,0.00035255,7]
[405116543,1770853832023,-500.0,0.00035255,7]
[405116544,1770853832033,-500.0,0.00035255,7]
[405116545,1770853832043,-500.0,0.00035255,7]
[405116546,1770853832053,-50.47396589,0.00035255,7]
[405116556,1770853832219,-449.52603411,0.00035255,7]
[405116558,1770853832233,-142.83933267,0.00035255,7]
[405116560,1770853832245,-357.16066733,0.00035255,7]
[405116562,1770853832254,-22.57433267,0.00035255,7]
[405116565,1770853832266,-347.875,0.00035255,7]
[405116662,1770853837779,-129.55066733,0.00035255,7]
[405116663,1770853837790,-500.0,0.00035255,7]
[405116664,1770853837800,-500.0,0.00035255,7]
[405116665,1770853837811,-500.0,0.00035255,7]
[405116666,1770853837821,-500.0,0.00035255,7]
[405116667,1770853837831,-205.42471277,0.00035255,7]
[405116668,1770853837840,-500.0,0.00035255,7]
[405116669,1770853837850,-500.0,0.00035255,7]
[405116670,1770853837859,-500.0,0.00035255,7]
[405116671,1770853837869,-500.0,0.00035255,7]
[405116672,1770853837879,-281.77420537,0.00035255,7]
[405116673,1770853837891,-218.22579463,0.00035255,7]
[405116674,1770853837900,-621.36299447,0.00035255,7]
[405116675,1770853837912,-500.0,0.00035255,7]
[405116676,1770853837922,-500.0,0.00035255,7]
[405116677,1770853837944,-500.0,0.00035255,7]
[405116678,1770853837956,-500.0,0.00035255,7]
[405116679,1770853837967,-500.0,0.00035255,7]
[405116680,1770853837977,-374.177305,0.00035535,2]
[405116681,1770853837988,-500.55901953,0.0003555,2]
[405116682,1770853837998,-306.24214878,0.0003555,2]
[405116683,1770853838008,-426.972308,0.00035992,2]
[405116684,1770853838018,-1503.110675,0.0003612,2]
[405116685,1770853838029,-200.0,0.0003697,120]
[405116686,1770853838038,-712.0,0.00037009,11]
[405116687,1770853838049,-374.177305,0.00037031,2]
[405116688,1770853838059,-748.0,0.00037075,11]
[405116689,1770853838070,-276.24,0.00037291,7]
[405116690,1770853838080,-255.38605326,0.00037296,2]
[405116691,1770853838370,150.0,0.0002589,2]
[405116692,1770853838423,177.0,0.0002789,2]
[405116693,1770853838698,204.0,0.0002989,2]
[405116694,1770853838852,915.39082,0.00034372,2]
[405116695,1770853839063,231.0,0.0003189,2]
[405116826,1770853844633,-321.44088123,0.00037296,2]
[405116837,1770853845848,-6498.48214181,0.00037296,2]
[405116838,1770853845858,-401.0,0.00037383,11]
[405116839,1770853845868,-712.0,0.00037396,11]
[405116840,1770853845878,-669.0,0.00037468,30]
[405116841,1770853845888,-170.0,0.00037649,11]
[405116842,1770853845898,-560.0,0.0003779,2]
[405116843,1770853845907,-500.0,0.00037889,2]
[405116844,1770853845917,-500.0,0.00037889,5]
[405116845,1770853845926,-500.0,0.00037889,5]
[405116846,1770853845936,-500.0,0.00037889,2]
[405116847,1770853845945,-999.75785819,0.0003789,2]
[405116848,1770853845984,-800.0,0.0003789,2]
[405116854,1770853877944,538.51283886,0.00013273,2]
[405116855,1770853884890,185.41655479,0.00013699,2]
[405116856,1770853884911,173.3592318,0.00013699,2]
[405116859,1770854541227,-150.0,0.00025547,2]
[405116860,1770854541256,-344.74481471,0.0002589,2]
[405116861,1770854609909,303.10001603,0.00019089,2]
[405116862,1770854609944,303.10001603,0.00019278,2]
[405116863,1770854609981,269.34475057,0.00019656,2]
[405116864,1770854610011,303.10001603,0.000189,2]
[405116865,1770854610047,303.10001603,0.00019467,2]
[405116866,1770854757092,-278.13866821,0.0002589,2]
[405116867,1770854828449,-150.0,0.00025548,2]
[405116868,1770854828474,-81.94461088,0.0002589,2]
[405116869,1770854835081,-132.1719062,0.0002589,2]
[405116870,1770854835105,-177.0,0.00027548,2]
[405116871,1770854835131,-204.0,0.00029548,2]
[405116872,1770854835153,-860.49418717,0.00031314,2]
[405116873,1770854847078,-906.4256375,0.00031314,2]
[405116875,1770854947072,-185.07353258,0.00031314,2]
[405116876,1770854953107,-1159.79778835,0.00031314,2]
[405116877,1770854953130,-745.1456179,0.00031361,2]
[405116878,1770854953153,-1600.0,0.00031546,3]
[405116903,1770855038201,-372.12538168,0.00033304,2]
[405116904,1770855038212,-300.0,0.0003406,3]
[405116905,1770855038223,-400.0,0.0003406,2]
[405116906,1770855038233,-300.0,0.0003406,3]
[405116907,1770855038244,-500.0,0.00034061,7]
[405116908,1770855038254,-400.0,0.00034062,3]
[405116909,1770855038265,-950.1269561,0.00034063,2]
[405116910,1770855038275,-1030.322026,0.00034063,2]
[405116911,1770855038286,-500.0,0.00035253,7]
[405116912,1770855038296,-500.0,0.00035253,7]
[405116913,1770855038307,-500.0,0.00035253,7]
[405116914,1770855038319,-500.0,0.00035253,7]
[405116915,1770855038329,-500.0,0.00035253,7]
[405116916,1770855038339,-500.0,0.00035253,7]
[405116917,1770855038349,-500.0,0.00035253,7]
[405116918,1770855038359,-644.80592669,0.00035253,7]
[405116919,1770855038369,-500.0,0.00035253,7]
[405116920,1770855038380,-500.0,0.00035253,7]
[405116921,1770855038390,-151.0,0.00035254,31]
[405116922,1770855038400,-151.0,0.00035254,31]
[405116923,1770855038411,-500.0,0.00035616,120]
[405116924,1770855038421,-151.0,0.00035616,31]
[405116925,1770855038432,-151.0,0.00035616,31]
[405116926,1770855038442,-151.0,0.00035616,31]
[405116927,1770855038452,-283.180982,0.00035616,31]
[405116928,1770855038462,-300.0,0.00035855,30]
[405116929,1770855038472,-300.0,0.00035855,30]
[405116930,1770855038482,-300.0,0.00035855,30]
[405116931,1770855038492,-300.0,0.00035855,30]
[405116932,1770855038502,-300.0,0.00035855,30]
[405116933,1770855038512,-300.0,0.00035855,30]
[405116934,1770855038521,-300.0,0.00035855,30]
[405116935,1770855038531,-300.0,0.00035855,30]
[405116936,1770855038541,-300.0,0.00035855,30]
[405116937,1770855038552,-300.0,0.00035855,30]
[405116938,1770855038562,-300.0,0.00035855,30]
[405116939,1770855038572,-300.0,0.00035855,30]
[405116940,1770855038582,-300.0,0.00035855,30]
[405116941,1770855038592,-300.0,0.00035855,30]
[405116942,1770855038602,-300.0,0.00035855,30]
[405116943,1770855038612,-600.0,0.00035957,30]
[405116944,1770855038623,-740.67092634,0.00036484,2]
[405116945,1770855038632,-2509.8881533,0.000365,2]
[405116946,1770855038642,-1503.110675,0.000365,2]
[405116947,1770855038652,-258.0,0.00036555,2]
[405116948,1770855038662,-1182.37583502,0.00036603,2]
[405116949,1770855038672,-151.0,0.00036603,31]
[405116950,1770855038682,-722.0,0.00036846,2]
[405116951,1770855038692,-180.11684825,0.00036969,2]
[405116952,1770855038701,-324.21032685,0.00036969,2]
[405116953,1770855038711,-349.64103615,0.00036969,2]
[405116954,1770855038721,-500.0,0.00036969,2]
[405116955,1770855038730,-888.99281869,0.00036975,2]
[405116956,1770855038739,-1000.0,0.00037,120]
[405116957,1770855038750,-167.04246,0.00037,31]
[405116958,1770855038761,-555.07192222,0.00037243,2]
[405116959,1770855038771,-204.06556867,0.00037742,2]
[405116960,1770855038781,-6245.04320553,0.00037788,2]
[405116961,1770855038791,-1403.60982097,0.00037879,3]
[405116962,1770855038801,-250.0,0.00037888,5]
[405116963,1770855038811,-250.0,0.00037888,5]
[405116964,1770855038822,-250.0,0.00037888,5]
[405116965,1770855038833,-250.0,0.00037888,5]
[405116966,1770855038843,-250.0,0.00037888,5]
[405116967,1770855038853,-250.0,0.00037888,5]
[405116968,1770855038963,-250.0,0.00037888,5]
[405116969,1770855038978,-250.0,0.00037888,5]
[405116970,1770855038989,-250.0,0.00037888,5]
[405116971,1770855039000,-250.0,0.00037888,5]
[405116972,1770855039013,-250.0,0.00037888,5]
[405116973,1770855039024,-250.0,0.00037888,5]
[405116974,1770855039035,-250.0,0.00037888,5]
[405116975,1770855039044,-250.0,0.00037888,5]
[405116976,1770855039056,-250.0,0.00037888,5]
[405116977,1770855039066,-250.0,0.00037888,5]
[405116978,1770855039076,-250.0,0.00037888,5]
[405116979,1770855039087,-250.0,0.00037888,5]
[405116980,1770855039097,-250.0,0.00037888,5]
[405116981,1770855039107,-250.0,0.00037888,5]
[405116982,1770855039117,-201.93286099,0.00037888,5]
[405116983,1770855039127,-250.0,0.00037888,5]
[405116984,1770855039137,-250.0,0.00037888,5]
[405116985,1770855039146,-250.0,0.00037888,5]
[405116986,1770855039156,-250.0,0.00037888,5]
[405116987,1770855039166,-209.40437684,0.00037888,5]
[405116988,1770855039177,-250.0,0.00037888,5]
[405116989,1770855039187,-250.0,0.00037888,5]
[405116990,1770855039196,-250.0,0.00037888,5]
[405116991,1770855039207,-217.15233878,0.00037888,5]
[405116992,1770855039216,-2000.0,0.00037888,5]
[405116993,1770855039226,-250.0,0.00037888,5]
[405116994,1770855039236,-500.0,0.00037888,5]
[405116995,1770855039245,-250.0,0.00037888,5]
[405116996,1770855039255,-250.0,0.00037888,5]
[405116997,1770855039264,-910.02560737,0.00037888,5]
[405116998,1770855039274,-500.0,0.00037888,5]
[405116999,1770855039284,-250.0,0.00037888,5]
[405117000,1770855039294,-250.0,0.00037888,5]
[405117001,1770855039304,-250.0,0.00037888,5]
[405117002,1770855039314,-225.18697532,0.00037888,5]
[405117003,1770855039323,-500.0,0.00037888,5]
[405117004,1770855039333,-250.0,0.00037888,5]
[405117005,1770855039343,-113.12894831,0.00037888,5]
[405117038,1770855040160,-136.87105169,0.00037888,5]
[405117040,1770855040171,-233.51889341,0.00037888,5]
[405117042,1770855040180,-246.65987301,0.00037888,5]
[405117044,1770855040192,-3.34012699,0.00037888,5]
[405117046,1770855040201,-500.0,0.00037888,5]
[405117048,1770855040211,-250.0,0.00037888,5]
[405117050,1770855040220,-500.0,0.00037888,5]
[405117052,1770855040230,-250.0,0.00037888,5]
[405117054,1770855040239,-242.15909246,0.00037888,5]
[405117056,1770855040248,-500.0,0.00037888,5]
[405117058,1770855040258,-250.0,0.00037888,5]
[405117060,1770855040268,-250.0,0.00037888,5]
[405117062,1770855040277,-500.0,0.00037888,5]
[405117065,1770855040286,-250.0,0.00037888,5]
[405117067,1770855040295,-251.11897888,0.00037888,5]